Cogmind - Beta 16.1 @@@ ROGUE MODE // 2026.02.14 @ 19:15:21 Player: Skergy Result: Destroyed by P-60 Hacker with Shock Rifle Performance ------------- Evolutions (0) 0 Regions Visited (3) 600 Robots Destroyed (37) 185 Value Destroyed (788) 788 Prototype IDs (13) 260 Alien Tech Used (0) 0 Bonus (0) 0 TOTAL SCORE: 1833 Bonus ------- None Cogmind --------- Core Integrity 0/250 Matter 168/300 Energy 250/250 System Corruption 0% Temperature Cool (0) Movement Rolling (155) Ox5 Location -7/Recycling Parts ------- > --- POWER (1) -------- Ion Engine > --- PROPULSION (2) --- Spiked Treads Wheel > --- UTILITY (2) ------ High-capacity Storage Unit > --- WEAPON (2) ------- Subdweller Laser Battle Cannon > --- INVENTORY (20) --- Makeshift Power Source Light Treads Compact Wheel Subdweller Monowheel Large Storage Unit Small Matter Pod (50) Small Matter Pod (50) Large Matter Pod (150) Seismic Detector Gun Armor Scrap Shield Subdweller Laser Subdweller Machine Gun 1B-0RG's Assimilator Mining Laser Peak State ------------ > --- POWER ------------ Ion Engine > --- PROPULSION ------- Spiked Treads Wheel > --- UTILITY ---------- High-capacity Storage Unit Light Armor Plating > --- WEAPON ----------- Subdweller Machine Gun Battle Cannon > --- INVENTORY -------- Makeshift Power Source Light Treads Compact Wheel Large Storage Unit Small Matter Pod Small Matter Pod Large Matter Pod Visual Processing Unit Seismic Detector Gun Armor Scrap Shield Small Laser Light Assault Rifle 1B-0RG's Assimilator Mining Laser [Rating: 19] Favorites ----------- Power Ion Engine Engine Ion Engine Propulsion Light Treads Treads Light Treads Wheel Wheel Utility High-capacity Storage Unit Device Seismic Detector Storage High-capacity Storage Unit Protection Light Armor Plating Weapon EM Pulse Gun Energy Gun EM Pulse Gun Ballistic Gun Assault Rifle Ballistic Cannon Battle Cannon Special Weapon Mining Laser Build | -11 -10 -10 -7 ------- Run | Yrd Mat Sub Rec Slots Evolved . | . . . . Power . | . . . . Propulsion . | . . . . Utility . | . . . . Weapon . | . . . . Parts Attached 20 | 7 7 6 . Power 2 | 1 . 1 . Engine 2 | 1 . 1 . Core . | . . . . Reactor . | . . . . Propulsion 5 | 2 2 1 . Treads 4 | 2 1 1 . Leg . | . . . . Wheel 1 | . 1 . . Hover . | . . . . Flight . | . . . . Utility 5 | 2 3 . . Device 1 | 1 . . . Storage 3 | 1 2 . . Processor . | . . . . Hackware . | . . . . Protection 1 | . 1 . . Artifact . | . . . . Weapon 8 | 2 2 4 . Energy Gun 3 | 2 . 1 . Energy Cannon . | . . . . Ballistic Gun 3 | . 2 1 . Ballistic Cannon 1 | . . 1 . Launcher . | . . . . Special Weapon 1 | . . 1 . Impact Weapon . | . . . . Slashing Weapon . | . . . . Piercing Weapon . | . . . . Special Melee Weapon . | . . . . Unidentified Prototypes . | . . . . Parts Lost 5 | . 4 1 . Power . | . . . . Propulsion 2 | . 2 . . Utility 1 | . . 1 . Weapon 2 | . 2 . . Highest Loss Streak 1 | . 1 1 . To Critical Strikes . | . . . . Average Backups 13 | 4 12 15 15 Power 1 | . 1 1 1 Propulsion 3 | 2 4 2 3 Utility 6 | . 4 7 7 Weapon 2 | 1 2 3 3 Tool/Special . | . . . . Unused Backups 19 | . 1 7 11 Power 2 | . . 1 1 Propulsion 4 | . . 2 2 Utility 8 | . 1 2 5 Weapon 4 | . . 2 2 Tool/Special 1 | . . . 1 Average Slot Usage (%) 98 | . 99 98 85 Engine 13 | . 14 13 14 Treads 19 | . 26 14 14 Wheel 8 | . 1 14 14 Device 2 | . 5 . . Storage 14 | . 14 14 14 Protection 10 | . 8 12 . Energy Gun 10 | . 21 . 14 Ballistic Gun 7 | . 5 9 . Ballistic Cannon 5 | . . 9 14 Special Weapon 4 | . . 8 . Peak Build Rating 19 | 7 8 19 18 Average Rating 12 | 5 7 17 18 On Entrance 8 | . 7 8 18 Avg Prop Armor Cover (%) 10 | . 9 10 14 Naked Turns . | . . . . Heaviest Build 55 | 15 52 55 52 Greatest Support 40 | 40 40 10 10 Greatest Overweight (x) 5 | 1 5 5 5 Average Overweight (x) 3 | . 1 4 5 Largest Inventory Capacity 20 | 8 20 20 20 Average Capacity 18 | 7 17 20 20 Most Carried 20 | 7 17 20 20 Average Carried 16 | 4 12 19 20 Final Capacity 20 | 8 20 20 20 Final Carried 20 | 7 16 20 20 Class Distribution -------------------- 100% | Mutant Dominant Class ---------------- Mutant | -10/Materials Mutant | -10/Subcaves Mutant | -7/Recycling Resources | -11 -10 -10 -7 ----------- Run | Yrd Mat Sub Rec Matter Collected 1053 | 270 375 408 . Remotely . | . . . . Salvage Created 1132 | 108 881 143 . Parts 68 | 4 49 15 . Haulers Intercepted 1 | . 1 . . Recyclers Shooed 2 | . 2 . . Parts Field Recycled . | . . . . Retrieved Matter . | . . . . Parts Self-Destructed 5 | . . 5 . Prevented . | . . . . Parts Restored . | . . . . Kills | -11 -10 -10 -7 ------- Run | Yrd Mat Sub Rec Combat Hostiles Destroyed 24 | . 17 7 . Guns 14 | . 11 3 . Cannons 4 | . . 4 . AOE 5 | . 5 . . Classes Destroyed 10 | 2 6 2 . Worker 1 | . 1 . . Builder 1 | . 1 . . Tunneler 2 | 2 . . . Hauler 1 | . 1 . . Recycler 3 | 1 2 . . Turret 2 | . . 2 . Watcher 3 | . 3 . . Swarmer 10 | . 6 4 . Grunt 11 | . 11 . . Subdweller 3 | . . 3 . Best Kill Streak 5 | 2 5 3 . Combat Bots Only 5 | . 5 3 . Max Kills in Single Turn 2 | 1 2 1 . Gunslinging . | . . . . Exploded 2 | . 2 . . Melee . | . . . . Uniques/NPCs Destroyed . | . . . . Combat | -11 -10 -10 -7 -------- Run | Yrd Mat Sub Rec Hostile Shots Fired 162 | . 93 59 10 Missed 51 | . 27 23 1 Hits 111 | . 66 36 9 Projectile 111 | . 66 36 9 Damage Taken 1257 | . 796 329 132 Core 261 | . 145 88 28 Absorbed by Shields . | . . . . Core Remaining (%) 100 | 100 . . . Volleys Fired 168 | 9 74 85 . Largest 2 | 2 2 2 . Hottest 133 | 80 80 133 . Shots Fired 263 | 18 137 108 . Gun 174 | 18 137 19 . Cannon 57 | . . 57 . Launcher . | . . . . Special 32 | . . 32 . Kinetic 106 | . 30 76 . Thermal 32 | . . 32 . Explosive . | . . . . Electromagnetic 125 | 18 107 . . Robot Hit Streak 12 | 7 12 7 . Robot Miss Streak 7 | 2 7 3 . Penetration Max . | . . . . Secondary Targets . | . . . . Shots Hit Robots 120 | 11 86 23 . Core Hits 54 | 4 36 14 . Critical Kills . | . . . . Critical Parts Destroyed 1 | . 1 . . Critical Strikes 3 | . 3 . . Destroy 1 | . 1 . . Corrupt 2 | . 2 . . Melee Attacks . | . . . . Impact . | . . . . Slashing . | . . . . Piercing . | . . . . Sneak Attacks . | . . . . Combat Hostiles . | . . . . Follow-up Attacks . | . . . . Damage Inflicted 2162 | 159 1521 482 . Guns 1525 | 159 1177 189 . Cannons 293 | . . 293 . Explosions 344 | . 344 . . Melee . | . . . . Ramming . | . . . . Kinetic 740 | . 258 482 . Thermal 344 | . 344 . . Explosive . | . . . . Electromagnetic 1078 | 159 919 . . Impact . | . . . . Slashing . | . . . . Piercing . | . . . . Highest Corruption . | . . . . Average Corruption . | . . . . Corruption Purged . | . . . . Corruption Blocked . | . . . . Overload Shots . | . . . . Overflow Damage 6 | . 6 . . Projectiles . | . . . . Explosions 6 | . 6 . . Melee . | . . . . Knockbacks 5 | . . 5 . Impact . | . . . . Kinetic 5 | . . 5 . Secondary . | . . . . Self-Inflicted Damage 64 | . 64 . . Shots 2 | . 2 . . Rammed . | . . . . Targets Rammed . | . . . . Kicked . | . . . . Crushed . | . . . . Highest Temperature 225 | 126 225 . . Average Temperature 53 | 55 53 . . Received Heat Transfer 483 | . 351 132 . Siege Activations . | . . . . Martial Activations . | . . . . Shielding Activations . | . . . . Robots Disrupted . | . . . . Combat Hostiles . | . . . . Robots Corrupted 1 | . 1 . . Combat Hostiles 1 | . 1 . . Parts Fried 2 | 1 1 . . Impact Corruptions . | . . . . Robots Melted . | . . . . Combat Hostiles . | . . . . Parts Melted . | . . . . Heat Transferred 500 | . 500 . . Parts Sabotaged . | . . . . Parts Stolen . | . . . . Parts Stripped . | . . . . Power Chain Reactions 6 | . 6 . . Alert | -11 -10 -10 -7 ------- Run | Yrd Mat Sub Rec Maximum Alert Level . | . . . . Low Security (%) 100 | 100 100 . 100 Level 1 . | . . . . Level 2 . | . . . . Level 3 . | . . . . Level 4 . | . . . . Level 5 . | . . . . High Security . | . . . . Max Security . | . . . . Peak Influence 146 | 10 146 . 69 Initial 69 | . . . 69 Average 48 | 1 51 . 64 Influence Increases 744 | 15 549 180 . Destroy 0b10 Robot/C 460 | . 340 120 . Destroy 0b10 Robot/NC 55 | 15 40 . . Destroy Leader 78 | . 78 . . Successful Hack 29 | . 29 . . Disable Machine 30 | . 30 . . Destroy Structure 17 | . 17 . . Lose Combat Pursuer 75 | . 15 60 . Influence Decreases 685 | 15 427 157 86 Entered New Map 135 | . . 59 76 Time Decay 510 | 15 397 88 10 Lost Part 40 | . 30 10 . Squads Dispatched 4 | . 4 . . Investigation 1 | . 1 . . Extermination . | . . . . Reinforcement 3 | . 3 . . Assault . | . . . . Garrison . | . . . . Intercept . | . . . . Searches Triggered . | . . . . Construction Impeded . | . . . . Haulers Reinforced . | . . . . Active Scanning Responses . | . . . . Cargo Convoy Interrupts . | . . . . Stealth | -11 -10 -10 -7 --------- Run | Yrd Mat Sub Rec Distress Signals . | . . . . Communications Jammed . | . . . . Distress Signals . | . . . . Times Spotted 36 | . 25 10 1 Peak Tracking Total 5 | . 5 3 1 Tactical Retreats 3 | . 1 2 . Traps | -11 -10 -10 -7 ------- Run | Yrd Mat Sub Rec Traps Triggered 1 | . 1 . . Indirectly . | . . . . Trap Hack Attempts . | . . . . Triggered . | . . . . Disarmed . | . . . . Reprogrammed . | . . . . Reused . | . . . . Traps Extracted . | . . . . Installed 1 | . . 1 . Triggered . | . . . . Machines | -11 -10 -10 -7 ---------- Run | Yrd Mat Sub Rec Machines Disabled 5 | . 2 3 . Max in Single Turn 1 | . 1 1 . Machines Repaired . | . . . . Machines Dismantled . | . . . . Machines Sabotaged . | . . . . Overloaded Fab Kills . | . . . . Hacking | -11 -10 -10 -7 --------- Run | Yrd Mat Sub Rec Machines Accessed 9 | . 6 3 . Terminals 5 | . 5 . . Fabricators . | . . . . Repair Stations . | . . . . Recycling Units 1 | . 1 . . Scanalyzers . | . . . . Garrison Access . | . . . . Total Hacks 28 | . 21 7 . Successful 20 | . 13 7 . Failed 8 | . 8 . . Catastrophic . | . . . . Database Lockouts . | . . . . Manual 18 | . 18 . . Terminals 15 | . 15 . . Fabricators . | . . . . Repair Stations . | . . . . Recycling Units 6 | . 6 . . Scanalyzers . | . . . . Garrison Access . | . . . . Terminal Hacks 8 | . 1 7 . Record 6 | . 1 5 . Open Door 1 | . . 1 . Proto ID Catalog 1 | . . 1 . Fabricator Hacks . | . . . . Repair Station Hacks . | . . . . Recycling Unit Hacks 2 | . 2 . . Process 1 | . 1 . . Report Inventory 1 | . 1 . . Scanalyzer . | . . . . Garrison Access Hacks . | . . . . Unauthorized Hacks 10 | . 10 . . Terminals 7 | . 7 . . Track 1 | . 1 . . Botnet 4 | . 4 . . Operators 2 | . 2 . . Fabricators . | . . . . Repair Stations . | . . . . Recycling Units 3 | . 3 . . Reject 1 | . 1 . . Recyclers 1 | . 1 . . Mask 1 | . 1 . . Scanalyzers . | . . . . Garrison Access . | . . . . Data Cores Recovered . | . . . . Used . | . . . . Hacking Detections 6 | . 6 . . Full Trace Events . | . . . . Feedback Events . | . . . . Feedback Blocked . | . . . . Robot Schematics Acquired . | . . . . Robots Built . | . . . . Authchips . | . . . . Time . | . . . . Total Robot Build Rating . | . . . . Part Schematics Acquired . | . . . . Parts Built . | . . . . Authchips . | . . . . Time . | . . . . Total Part Build Rating . | . . . . Part Studies Acquired . | . . . . Parts Repaired . | . . . . Time . | . . . . Parts Recycled . | . . . . Recycled Matter 190 | . 190 . . Retrieved Matter . | . . . . Retrieved Components . | . . . . Parts Scanalyzed . | . . . . Part Schematics Acquired . | . . . . Parts Damaged . | . . . . Bothacking | -11 -10 -10 -7 ------------ Run | Yrd Mat Sub Rec Used RIF Installer . | . . . . Robots Hacked . | . . . . Non-combat . | . . . . Combat . | . . . . Robot Hacks Applied . | . . . . Relay Couplers Released . | . . . . Fabnet Peak Effective % . | . . . . Robots Rewired 1 | . . . 1 Allies Hacked . | . . . . Hacks Repelled . | . . . . Allies | -11 -10 -10 -7 -------- Run | Yrd Mat Sub Rec Total Allies 1 | . . . 1 Largest Group 1 | . . . 1 Highest-Rated Group 16 | . . . 16 Highest-Rated Ally 16 | . . . 16 Total Orders . | . . . . Ally Attacks 3 | . . . 3 Total Damage 51 | . . . 51 Kills . | . . . . Allies Corrupted . | . . . . Allies Melted . | . . . . Intel | -11 -10 -10 -7 ------- Run | Yrd Mat Sub Rec Active Infowar (turns) 658 | 36 622 . . Seismic 658 | 36 622 . . Robot Analysis Total . | . . . . Derelict Logs Recovered 1 | . . 1 . Drone Launches . | . . . . Drone Recoveries . | . . . . Exploration | -11 -10 -10 -7 ------------- Run | Yrd Mat Sub Rec Turns Passed 3381 | 127 1489 1733 32 Spaces Moved 1600 | 58 609 924 9 Core 10 | 10 . . . Treads 588 | 48 540 . . Legs . | . . . . Wheels 1002 | . 69 924 9 Hover . | . . . . Flight . | . . . . Fastest Speed 50 | 50 155 140 155 Average Speed 170 | 144 197 154 155 Slowest Speed 240 | 160 240 155 155 Overloaded Moves . | . . . . Propulsion Burnouts . | . . . . Robots Hopped . | . . . . Potential Cave-ins . | . . . . Cave-ins Triggered . | . . . . Exploration Rate (%) 35 | 4 84 48 5 Regions Visited 3 Branch Regions 2 Pre-discovered Areas 1 | . . 1 . Known Exits Taken 1 | . . 1 . Unknown Exits Taken 2 | 1 1 . . Scrap Searched 4 | . . 4 . Spaces Dug 2 | . . 2 . Terrain Destroyed 22 | . 17 5 . Melee . | . . . . Projectile 5 | . . 5 . AOE 17 | . 17 . . Terrain Rammed . | . . . . Walls Destroyed . | . . . . Machines Disabled . | . . . . Actions | -11 -10 -10 -7 --------- Run | Yrd Mat Sub Rec Total 1925 | 80 761 1057 27 Wait 68 | . 57 11 . Move 1597 | 57 608 923 9 Hop . | . . . . Pick Up 30 | 7 13 10 . Fast Attach 9 | 7 . 2 . Attach 5 | . 4 1 . Detach 1 | . . 1 . Swap 12 | . 3 9 . Drop 16 | . 2 14 . Fire 168 | 9 74 85 . Melee . | . . . . Ram . | . . . . Kick . | . . . . Crush . | . . . . Escape Stasis . | . . . . Rewire 18 | . . . 18 Trap 1 | . . 1 . Miscellaneous . | . . . . Route ------- -11/Scrapyard -10/Materials (discovered 5 exits: [*Mat x3] / [*Min] / *Sub) -10/Subcaves -7/Recycling History --------- Turn | Location | Event 13 | -11/Scrapyard | Discovered new exit (range 14) 128 | -11/Scrapyard | Entered Materials 317 | -10/Materials | Build established: Mutant 497 | -10/Materials | Discovered new exit (range 10) 650 | -10/Materials | Discovered new exit (range 13) 1041 | -10/Materials | Discovered new exit (range 7) 1187 | -10/Materials | Discovered new exit (range 16) 1474 | -10/Materials | Core integrity fell below 50% 1575 | -10/Materials | Discovered new exit (range 12) 1617 | -10/Materials | Entered Subcaves 1671 | -10/Subcaves | Visited 4L-MR0's lab 1687 | -10/Subcaves | Found Gun Armor 1694 | -10/Subcaves | Found Prototype Special Melee Weapon 1781 | -10/Subcaves | Disturbed a concealed Subdweller 2002 | -10/Subcaves | Shifting Twisted Machinery released Shrapnel Trap 2036 | -10/Subcaves | Learned location of Zion (-6) 2144 | -10/Subcaves | Shifting Twisted Machinery released Battle Cannon 2582 | -10/Subcaves | Visited Clippyterm 2586 | -10/Subcaves | Identified exit to Recycling 2586 | -10/Subcaves | Learned Factory stockpile data 3187 | -10/Subcaves | Core integrity fell below 20% 3350 | -10/Subcaves | Entered Recycling 3382 | -7/Recycling | Destroyed by P-60 Hacker with Shock Rifle Last Messages --------------- 03244_ Autobeam Turret destroyed. 03246_ Acquired 10 matter. 03254_ Acquired 5 matter. 03257_ Acquired 10 matter. 03259_ Acquired 2 matter. 03260_ Acquired 4 matter. 03262_ Acquired 7 matter. 03284_ Subatomizers dissect the Disposable Heat Sink. 03305_ Dropped Broken Sub. Machine Gun. 03306_ Acquired Sub. Laser. 03325_ Subatomizers dissect the Disposable Heat Sink. LOCATION=RECYCLING GOAL=ESCAPE 03360_ Attempting to rewire G-47 Trooper. 03366_ P-60 Hacker springs to life. 03367_ Attempting to rewire G-47 Trooper. 03376_ G-47 Trooper rewired. 03379_ Attempting to rewire G-47 Trooper. 03380_ P-60 Hacker fails to hack Trooper 4a. 03381_ Attempting to rewire G-47 Trooper. Map ----- +----------------------------------------------------+ | ?????????????????????????????????????????????????? | | ?????????????????????????????????????????????????? | | ?????????????????????????????????????????????????? | | ?????????????????????????????????????????????????? | | ?????????????????????????????????????????????????? | | ?????????????????????????????????????????????????? | | ?????????????????????????????????????????????????? | | ?????????????????????????????????????????????????? | | ????????????????????????#????????????????????????? | | ????????????????????????# ???????????????????????? | | ????????????????????????# ???????????????????????? | | ????????????????????????# ??????????????????????? | | ????????????????????????# ??????????????????????? | | ????????????????????????# ??????????????????????? | | ????????????????????????# ?????????????????????? | | ????????????????????????# ?????????????????????? | | ????????????????????????# ########?????????????? | | ????????????????????????# #?????????????? | | ????????????????????????+ #?????????????? | | ????????????????????????# #?????????????? | | ????????????????????????##+##+######?????????????? | | ????????????????????????# g #??????????????? | | ????????????????????????# +??????????????? | | ????????????????????????#] g #??????????????? | | ????????????????????????# pt #??????????????? | | ????????????????????????#@gYs t Y!#??????????????? | | ????????????????????????# g !hkuY#??????????????? | | ????????????????????????# b ] #??????????????? | | ????????????????????????#/ kY#??????????????? | | ????????????????????????###########??????????????? | | ?????????????????????????????????????????????????? | | ?????????????????????????????????????????????????? | | ?????????????????????????????????????????????????? | | ?????????????????????????????????????????????????? | | | | | | | | | | | | | | | | | | | | | | | | | | | | | | | | | +----------------------------------------------------+ Best States ------------- Heat Dissipation 25 Energy Generation 10 Energy Capacity 250 Matter Stores 300 Matter Capacity 300 Sight Range 16 Terrain Scan Density 10 Armor Coverage 150 Evasion (%) 40 Recoil Reduction 2 Item Schematics ----------------- None Robot Schematics ------------------ None Fabricated ------------ Nothing Repaired ---------- Nothing Studied --------- None Alien Tech Used ----------------- None Achievements -------------- None Challenges ------------ None Game ------ Seed MissileStructuralWell Manual? 0 Play Time 00:29:14 Cumulative 125.5 hours Start 2026.02.14 @ 18:34:45 End 2026.02.14 @ 19:15:21 Sessions 1 Manual Loads 0 Difficulty Rogue Special Mode None Game No. 133 Rogue 133 Adventurer 0 Explorer 0 Win Type - Total 4 Types 4/0/0/0/0/0/0/0/0/0 Lore% 68 Gallery% 52 Achievement% 41 Wizard Run 0 Options --------- Layout 0 ASCII 0 Keyboard 1 Movement Vi Keybinds 0 Fullscreen 1 Font 24/Terminus Map View 76x50 Zoom Use 0% Tactical HUD 1 Map Filters NONE Filters NONE Steam 1 RUN: 1dff183f-fce2-479c-a667-58c6be5cd7dc